fUSD/lending_fUSD_20240117
["ID","MTS","AMOUNT","RATE_DAILY","PERIOD"]
[311936868,1705510259650,-161.9671488,0.00021987,2]
[311936869,1705510259685,-156.42508292,0.00021987,2]
[311936870,1705510259713,-696.56616729,0.00021987,2]
[311936871,1705510259761,-3793.69282718,0.00021987,2]
[311936872,1705510259782,-184.06324017,0.00021987,2]
[311936873,1705510259810,-155.39180179,0.00021987,2]
[311936874,1705510259844,-155.35930712,0.00021987,2]
[311936875,1705510259878,-676.40668011,0.00021987,2]
[311936876,1705510259914,-2803.97842705,0.00021987,5]
[311936877,1705510259949,-155.0,0.00021987,2]
[311936878,1705510259979,-155.42012527,0.00021987,2]
[311936879,1705510260019,-4119.5772864,0.00021987,2]
[311936880,1705510260045,-155.4200786,0.00021987,2]
[311936881,1705510260072,-179.6797404,0.00021987,2]
[311936882,1705510260116,-232.92375042,0.00021987,2]
[311936883,1705510260135,-155.45501439,0.00021987,2]
[311936884,1705510260162,-155.70488492,0.00021987,2]
[311936885,1705510260188,-155.26024303,0.00021987,2]
[311936886,1705510260206,-310.74885939,0.00021987,2]
[311936887,1705510260225,-500.0,0.00021988,2]
[311936888,1705510260265,-520.19670857,0.00021988,2]
[311936889,1705510260293,-500.0,0.00021988,2]
[311936890,1705510260322,-500.0,0.00021988,2]
[311936891,1705510260343,-500.0,0.00021988,2]
[311936892,1705510260365,-500.0,0.00021988,2]
[311936893,1705510260394,-500.0,0.00021988,2]
[311936894,1705510260438,-500.0,0.00021988,2]
[311936895,1705510260472,-500.0,0.00021988,2]
[311936896,1705510260486,-500.0,0.00021988,2]
[311936897,1705510260522,-500.0,0.00021988,2]
[311936898,1705510260562,-500.0,0.00021988,2]
[311936899,1705510260585,-500.0,0.00021988,2]
[311936900,1705510260615,-500.0,0.00021988,2]
[311936901,1705510260637,-500.0,0.00021988,2]
[311936902,1705510260663,-4025.93,0.00021988,2]
[311936903,1705510260689,-500.0,0.00021988,2]
[311936904,1705510260733,-500.0,0.00021988,2]
[311936905,1705510260769,-500.0,0.00021988,2]
[311936906,1705510260790,-500.0,0.00021988,2]
[311936907,1705510260812,-500.0,0.00021988,2]
[311936908,1705510260827,-500.0,0.00021988,2]
[311936909,1705510260843,-500.0,0.00021988,2]
[311936910,1705510260874,-500.0,0.00021988,2]
[311936911,1705510260896,-500.0,0.00021988,2]
[311936912,1705510260916,-500.0,0.00021988,2]
[311936913,1705510260941,-500.0,0.00021988,2]
[311936914,1705510260970,-500.0,0.00021988,2]
[311936915,1705510260999,-500.0,0.00021988,2]
[311936916,1705510261022,-500.0,0.00021988,2]
[311936917,1705510261048,-181.04731766,0.00021988,2]
[311936918,1705510261068,-500.0,0.00021988,2]
[311936919,1705510261094,-500.0,0.00021988,2]
[311936920,1705510261129,-500.0,0.00021988,2]
[311936921,1705510261144,-500.0,0.00021988,2]
[311936922,1705510261173,-500.0,0.00021988,2]
[311936923,1705510261199,-509.57,0.00021988,2]
[311936924,1705510261218,-509.57,0.00021988,2]
[311936925,1705510261236,-500.0,0.00021988,2]
[311936926,1705510261264,-500.0,0.00021988,2]
[311936927,1705510261292,-300.0,0.00021988,2]
[311936928,1705510261317,-300.0,0.00021988,2]
[311936929,1705510261333,-500.0,0.00021988,2]
[311936930,1705510261357,-2967.75221958,0.00021988,2]
[311936931,1705510261378,-876.87900109,0.00021988,2]
[311936932,1705510261404,-209.73639185,0.00021988,2]
[311936933,1705510261436,-394.37787128,0.00021988,2]
[311936934,1705510261474,-500.0,0.00021989,2]
[311936935,1705510261529,-500.0,0.00021989,2]
[311936936,1705510261575,-509.57,0.00021989,2]
[311936937,1705510261608,-372.40939067,0.00021989,2]
[311936938,1705510261635,-266.13862473,0.00021989,2]
[311936939,1705510261653,-505444.87458687,0.00021989,2]
[311936940,1705510261672,-39789.9313,0.0002199,2]
[311936941,1705510261706,-245000.0,0.0002199,2]
[311936942,1705510261731,-55555.0,0.0002199,2]
[311936943,1705510261758,-2772.5944197,0.00022,2]
[311936944,1705510261780,-1117.29370242,0.00022,2]
[311936945,1705510261802,-161.63385363,0.00022,2]
[311936946,1705510261837,-207.78272895,0.00022,2]
[311936947,1705510261861,-155.0,0.00022,2]
[311936948,1705510261884,-289.50956025,0.00022,4]
[311936949,1705510261903,-151.42,0.00022,2]
[311936950,1705510261919,-1188.35570857,0.00022089,2]
[311936951,1705510261945,-233.63583089,0.00022089,2]
[311936952,1705510261969,-841.98421029,0.00022089,2]
[311936953,1705510261995,-501.50569853,0.0002209,2]
[311936954,1705510262013,-613.32129066,0.0002209,2]
[311936955,1705510262030,-308.28644667,0.0002209,2]
[311936956,1705510262070,-500.0,0.0002209,2]
[311936957,1705510262094,-500.0,0.0002209,2]
[311936958,1705510262132,-559.26882752,0.0002209,2]
[311936959,1705510262158,-501.60344536,0.0002209,2]
[311936960,1705510262189,-500.0,0.0002209,2]
[311936961,1705510262216,-500.0,0.0002209,2]
[311936962,1705510262235,-500.60647794,0.0002209,2]
[311936963,1705510262261,-500.0,0.0002209,2]
[311936964,1705510262288,-167.85255491,0.0002209,2]
[311936965,1705510262309,-348.988178,0.0002209,2]
[311936966,1705510262330,-500.0,0.0002209,2]
[311936967,1705510262352,-605.64098396,0.0002209,2]
[311936968,1705510262373,-500.0,0.0002209,2]
[311936969,1705510262403,-511.83730295,0.0002209,2]
[311936970,1705510262424,-500.0,0.0002209,2]
[311936971,1705510262452,-500.0,0.0002209,2]
[311936972,1705510262475,-1000.0,0.0002209,2]
[311936973,1705510262498,-503.02774614,0.0002209,2]
[311936974,1705510262517,-506.0929085,0.0002209,2]
[311936975,1705510262535,-500.0,0.0002209,2]
[311936976,1705510262553,-542.33361033,0.0002209,2]
[311936977,1705510262575,-500.0,0.0002209,2]
[311936978,1705510262588,-500.0,0.0002209,2]
[311936979,1705510262610,-503.09883065,0.0002209,2]
[311936980,1705510262622,-501.65874265,0.0002209,2]
[311936981,1705510262640,-500.0,0.0002209,2]
[311936982,1705510262662,-500.0,0.0002209,2]
[311936983,1705510262680,-506.78640483,0.0002209,2]
[311936984,1705510262707,-500.0,0.0002209,2]
[311936985,1705510262726,-503.22583952,0.0002209,2]
[311936986,1705510262748,-500.0,0.0002209,2]
[311936987,1705510262767,-503.23375375,0.0002209,2]
[311936988,1705510262795,-500.0,0.0002209,2]
[311936989,1705510262824,-504.98296119,0.0002209,2]
[311936990,1705510262849,-500.67386981,0.0002209,2]
[311936991,1705510262883,-500.0,0.0002209,2]
[311936992,1705510262906,-503.25830555,0.0002209,2]
[311936993,1705510262930,-500.5988192,0.0002209,2]
[311936994,1705510262955,-504.43069245,0.0002209,2]
[311936995,1705510262978,-500.0,0.0002209,2]
[311936996,1705510262993,-500.0,0.0002209,2]
[311936997,1705510263022,-500.0,0.0002209,2]
[311936998,1705510263041,-551.53219362,0.0002209,2]
[311936999,1705510263056,-189.25741053,0.0002209,2]
[311937000,1705510263079,-534.52154359,0.0002209,2]
[311937001,1705510263095,-500.0,0.0002209,2]
[311937002,1705510263125,-490.05836025,0.0002209,2]
[311937003,1705510263145,-500.0,0.0002209,2]
[311937004,1705510263169,-502.98599567,0.0002209,2]
[311937005,1705510263185,-519.23598596,0.0002209,2]
[311937006,1705510263205,-500.0,0.0002209,2]
[311937007,1705510263222,-257.58983802,0.0002209,2]
[311937008,1705510263248,-366.6887735,0.0002209,2]
[311937009,1705510263272,-500.0,0.0002209,2]
[311937010,1705510263298,-500.0,0.0002209,2]
[311937011,1705510263320,-500.5836376,0.0002209,2]
[311937012,1705510263333,-500.0,0.0002209,2]
[311937013,1705510263362,-500.0,0.0002209,2]
[311937014,1705510263381,-500.0,0.0002209,2]
[311937015,1705510263400,-500.0,0.0002209,2]
[311937016,1705510263412,-501.08738928,0.0002209,2]
[311937017,1705510263428,-500.0,0.0002209,2]
[311937018,1705510263444,-500.0,0.0002209,2]
[311937019,1705510263470,-500.67732668,0.0002209,2]
[311937020,1705510263515,-500.0,0.0002209,2]
[311937021,1705510263536,-500.0,0.0002209,2]
[311937022,1705510263564,-501.34684988,0.0002209,2]
[311937023,1705510263579,-166.82641189,0.0002209,2]
[311937024,1705510263590,-500.0,0.0002209,2]
[311937025,1705510263618,-500.0,0.0002209,2]
[311937026,1705510263639,-500.0,0.0002209,2]
[311937027,1705510263663,-501.32353101,0.0002209,2]
[311937028,1705510263677,-150.0,0.00022174,2]
[311937029,1705510263693,-500.0,0.00022191,2]
[311937030,1705510263725,-500.0,0.00022191,2]
[311937031,1705510263747,-500.0,0.00022191,2]
[311937032,1705510263776,-213.14,0.00022191,2]
[311937033,1705510263798,-200.54134064,0.00022191,2]
[311937034,1705510263823,-500.0,0.00022191,2]
[311937035,1705510263842,-500.0,0.00022191,2]
[311937036,1705510263855,-500.0,0.00022191,2]
[311937037,1705510263867,-242.46,0.00022191,2]
[311937038,1705510263878,-500.0,0.00022191,2]
[311937039,1705510263891,-500.0,0.00022191,2]
[311937040,1705510263910,-500.0,0.00022191,2]
[311937041,1705510263944,-234.97,0.00022191,2]
[311937042,1705510263967,-500.0,0.00022191,2]
[311937043,1705510263991,-332.31,0.00022191,2]
[311937044,1705510264018,-284.85,0.00022191,2]
[311937045,1705510264029,-500.0,0.00022191,2]
[311937046,1705510264068,-438.8,0.00022191,2]
[311937047,1705510264093,-320.78,0.00022191,2]
[311937048,1705510264116,-500.0,0.00022191,2]
[311937049,1705510264146,-500.0,0.00022191,2]
[311937050,1705510264155,-500.0,0.00022191,2]
[311937051,1705510264169,-238.65,0.00022191,2]
[311937052,1705510264186,-500.0,0.00022191,2]
[311937053,1705510264214,-500.0,0.00022191,2]
[311937054,1705510264235,-500.0,0.00022191,2]
[311937055,1705510264257,-500.0,0.00022191,2]
[311937056,1705510264273,-175.76,0.00022191,2]
[311937057,1705510264290,-500.0,0.00022191,2]
[311937058,1705510264317,-505.03,0.00022191,2]
[311937059,1705510264346,-457.17,0.00022191,2]
[311937060,1705510264367,-443.26,0.00022191,2]
[311937061,1705510264389,-500.0,0.00022191,2]
[311937062,1705510264414,-449.42854464,0.00022191,2]
[311937063,1705510264431,-500.0,0.00022191,2]
[311937064,1705510264451,-500.0,0.00022191,2]
[311937065,1705510264479,-500.0,0.00022191,2]
[311937066,1705510264503,-500.0,0.00022191,2]
[311937067,1705510264523,-500.0,0.00022191,2]
[311937068,1705510264548,-550.2600222,0.00022191,2]
[311937069,1705510264569,-531.41,0.00022191,2]
[311937070,1705510264608,-500.0,0.00022191,2]
[311937071,1705510264635,-172.7,0.00022191,2]
[311937072,1705510264653,-500.0,0.00022191,2]
[311937073,1705510264685,-500.0,0.00022191,2]
[311937074,1705510264702,-643.93,0.00022191,2]
[311937075,1705510264720,-500.0,0.00022191,2]
[311937076,1705510264750,-423.69,0.00022191,2]
[311937077,1705510264775,-500.0,0.00022191,2]
[311937078,1705510264802,-500.0,0.00022191,2]
[311937079,1705510264821,-500.0,0.00022191,2]
[311937080,1705510264842,-524.66,0.00022191,2]
[311937081,1705510264867,-500.0,0.00022191,2]
[311937082,1705510264897,-500.0,0.00022191,2]
[311937083,1705510264923,-500.0,0.00022191,2]
[311937084,1705510264952,-401.15,0.00022191,2]
[311937085,1705510264978,-500.0,0.00022191,2]
[311937086,1705510265008,-156.15,0.00022191,2]
[311937087,1705510265048,-500.0,0.00022191,2]
[311937088,1705510265068,-250.12,0.00022191,2]
[311937089,1705510265086,-500.0,0.00022191,2]
[311937090,1705510265099,-500.0,0.00022191,2]
[311937091,1705510265143,-676.78,0.00022191,2]
[311937092,1705510265160,-334.55,0.00022191,2]
[311937093,1705510265185,-570.36287026,0.00022191,2]
[311937094,1705510265228,-500.0,0.00022191,2]
[311937095,1705510265249,-500.0,0.00022191,2]
[311937096,1705510265269,-390.85287352,0.00022191,2]
[311937097,1705510265319,-500.0,0.00022191,2]
[311937098,1705510265343,-500.0,0.00022191,2]
[311937099,1705510265388,-601.24,0.00022191,2]
[311937100,1705510265417,-230.27,0.00022191,2]
[311937101,1705510265878,-500.0,0.00022191,2]
[311937102,1705510265935,-522.96,0.00022191,2]
[311937103,1705510265967,-934.53,0.00022191,2]
[311937104,1705510265988,-500.0,0.00022191,2]
[311937105,1705510266025,-500.0,0.00022191,2]
[311937106,1705510266055,-500.0,0.00022191,2]
[311937107,1705510266083,-500.0,0.00022191,2]
[311937108,1705510266108,-500.0,0.00022191,2]
[311937109,1705510266144,-500.0,0.00022191,2]
[311937110,1705510266167,-500.0,0.00022191,2]
[311937111,1705510266194,-500.0,0.00022191,2]
[311937112,1705510266220,-500.0,0.00022191,2]
[311937113,1705510266249,-500.0,0.00022191,2]
[311937114,1705510266272,-468.9790765,0.00022191,2]
[311937115,1705510266305,-500.0,0.00022191,2]
[311937116,1705510266335,-500.0,0.00022191,2]
[311937117,1705510266366,-500.0,0.00022191,2]
[311937118,1705510266383,-500.0,0.00022191,2]
[311937119,1705510266400,-500.0,0.00022191,2]
[311937120,1705510266426,-207.58,0.00022191,2]
[311937121,1705510266455,-500.0,0.00022191,2]
[311937122,1705510266496,-500.0,0.00022191,2]
[311937123,1705510266522,-506.37,0.00022191,2]
[311937124,1705510266536,-500.0,0.00022191,2]
[311937125,1705510266566,-500.0,0.00022191,2]
[311937126,1705510266583,-2430.27,0.00022191,2]
[311937127,1705510266603,-302.92,0.00022191,2]
[311937128,1705510266624,-500.0,0.00022191,2]
[311937129,1705510266648,-593.01,0.00022191,2]
[311937130,1705510266678,-500.0,0.00022191,2]
[311937131,1705510266707,-500.0,0.00022191,2]
[311937132,1705510266730,-500.0,0.00022191,2]
[311937133,1705510266758,-500.0,0.00022191,2]
[311937134,1705510266779,-500.0,0.00022191,2]
[311937135,1705510266805,-500.0,0.00022191,2]
[311937136,1705510266831,-500.0,0.00022191,2]
[311937137,1705510266844,-500.0,0.00022191,2]
[311937138,1705510266885,-500.0,0.00022191,2]
[311937139,1705510266911,-500.0,0.00022191,2]
[311937140,1705510266944,-500.0,0.00022191,2]
[311937141,1705510266979,-183.75,0.00022191,2]
[311937142,1705510267030,-500.0,0.00022191,2]
[311937143,1705510267063,-500.0,0.00022191,2]
[311937144,1705510267085,-500.0,0.00022191,2]
[311937145,1705510267111,-500.0,0.00022191,2]
[311937146,1705510267133,-500.0,0.00022191,2]
[311937147,1705510267199,-500.0,0.00022191,2]
[311937148,1705510267248,-500.0,0.00022191,2]
[311937149,1705510267269,-500.0,0.00022191,2]
[311937150,1705510267302,-500.0,0.00022191,2]
[311937151,1705510267344,-500.0,0.00022191,2]
[311937152,1705510267363,-500.0,0.00022191,2]
[311937153,1705510267403,-849.72,0.00022191,5]
[311937154,1705510267429,-500.0,0.00022191,2]
[311937155,1705510267487,-500.0,0.00022191,2]
[311937156,1705510267513,-500.0,0.00022191,2]
[311937157,1705510267533,-500.0,0.00022191,2]
[311937158,1705510267546,-500.0,0.00022191,2]
[311937159,1705510267582,-500.0,0.00022191,2]
[311937160,1705510267604,-512.42908473,0.00022191,2]
[311937161,1705510267638,-500.0,0.00022191,2]
[311937162,1705510267656,-494.43025649,0.00022191,2]
[311937164,1705510267681,-618.08,0.00022191,2]
[311937166,1705510267707,-590.69,0.00022191,2]
[311937168,1705510267725,-500.0,0.00022191,2]
[311937170,1705510267759,-500.0,0.00022191,2]
[311937172,1705510267782,-252.06,0.00022191,2]
[311937174,1705510267795,-500.0,0.00022191,2]
[311937176,1705510267824,-500.0,0.00022191,2]
[311937178,1705510267837,-500.0,0.00022191,2]
[311937180,1705510267852,-500.0,0.00022191,2]
[311937182,1705510267868,-986.29,0.00022191,2]
[311937184,1705510267883,-500.0,0.00022191,2]
[311937186,1705510267899,-500.0,0.00022191,2]
[311937188,1705510267912,-500.0,0.00022191,2]
[311937190,1705510267950,-500.0,0.00022191,2]
[311937194,1705510267969,-500.0,0.00022191,2]
[311937197,1705510267990,-500.0,0.00022191,2]
[311937199,1705510268008,-500.0,0.00022191,2]
[311937201,1705510268032,-500.0,0.00022191,2]
[311937204,1705510268052,-486.72423186,0.00022191,2]
[311937207,1705510268069,-500.0,0.00022191,2]
[311937210,1705510268099,-500.0,0.00022191,2]
[311937215,1705510268127,-557.03,0.00022191,2]
[311937217,1705510268166,-476.78,0.00022191,2]
[311937218,1705510268182,-566.42,0.00022191,2]
[311937220,1705510268205,-500.0,0.00022191,2]
[311937222,1705510268225,-500.0,0.00022191,2]
[311937225,1705510268259,-500.0,0.00022191,2]
[311937227,1705510268284,-500.0,0.00022191,2]
[311937228,1705510268308,-500.0,0.00022191,2]
[311937231,1705510268325,-500.0,0.00022191,2]
[311937233,1705510268357,-500.0,0.00022191,2]
[311937235,1705510268390,-500.0,0.00022191,2]
[311937237,1705510268416,-337.09,0.00022191,2]
[311937239,1705510268442,-500.0,0.00022191,2]
[311937241,1705510268483,-638.76,0.00022191,2]
[311937243,1705510268547,-500.0,0.00022191,2]
[311937246,1705510268578,-500.0,0.00022191,2]
[311937248,1705510268607,-500.0,0.00022191,2]
[311937249,1705510268623,-500.0,0.00022191,2]
[311937251,1705510268636,-155.63464867,0.00022192,2]
[311937253,1705510268669,-150.53,0.00022194,2]
[311937255,1705510268706,-500.0,0.0002226,2]
[311937257,1705510268717,-500.0,0.0002226,2]
[311937259,1705510268735,-500.0,0.0002226,2]
[311937262,1705510268764,-500.0,0.0002226,2]
[311937264,1705510268807,-174.79,0.0002226,2]
[311937266,1705510268839,-500.0,0.0002226,2]
[311937269,1705510268875,-500.0,0.0002226,2]
[311937271,1705510268909,-500.0,0.0002226,2]
[311937273,1705510268948,-500.0,0.0002226,2]
[311937275,1705510268978,-500.0,0.0002226,2]
[311937277,1705510269014,-500.0,0.0002226,2]
[311937279,1705510269068,-500.0,0.0002226,2]
[311937281,1705510269092,-500.0,0.0002226,2]
[311937283,1705510269108,-500.0,0.0002226,2]
[311937285,1705510269156,-500.0,0.0002226,2]
[311937286,1705510269185,-500.0,0.0002226,2]
[311937288,1705510269204,-729.89,0.0002226,2]
[311937291,1705510269248,-500.0,0.0002226,2]
[311937294,1705510269297,-500.0,0.0002226,2]
[311937296,1705510269333,-500.0,0.0002226,2]
[311937297,1705510269375,-509.57,0.0002226,2]
[311937299,1705510269394,-500.0,0.0002226,2]
[311937301,1705510269425,-500.0,0.0002226,2]
[311937303,1705510269462,-500.0,0.0002226,2]
[311937305,1705510269492,-500.0,0.0002226,2]
[311937308,1705510269551,-500.0,0.0002226,2]
[311937310,1705510269597,-533.67,0.0002226,2]
[311937312,1705510269637,-500.0,0.0002226,2]
[311937314,1705510269666,-500.0,0.00022261,2]
[311937316,1705510269680,-439.05,0.00022261,2]
[311937318,1705510269713,-500.0,0.00022261,2]
[311937320,1705510269730,-379.45,0.00022261,2]
[311937322,1705510269758,-500.0,0.00022261,2]
[311937324,1705510269795,-500.0,0.00022261,2]
[311937326,1705510269816,-179.58,0.00022261,2]
[311937328,1705510269837,-500.0,0.00022261,2]
[311937329,1705510269863,-500.0,0.00022261,2]
[311937331,1705510269889,-500.0,0.00022261,2]
[311937334,1705510269917,-577.44637326,0.00022261,2]
[311937336,1705510269941,-500.0,0.00022261,2]
[311937338,1705510269967,-500.0,0.00022261,2]
[311937340,1705510270004,-500.0,0.00022261,2]
[311937342,1705510270043,-500.0,0.00022261,2]
[311937344,1705510270058,-500.0,0.00022261,2]
[311937347,1705510270105,-500.0,0.00022261,2]
[311937349,1705510270135,-500.0,0.00022261,2]
[311937351,1705510270162,-500.0,0.00022261,2]
[311937353,1705510270182,-500.0,0.00022261,2]
[311937355,1705510270201,-500.0,0.00022261,2]
[311937357,1705510270234,-500.0,0.00022261,2]
[311937359,1705510270258,-500.0,0.00022261,2]
[311937361,1705510270297,-513.99426196,0.00022261,2]
[311937364,1705510270325,-500.0,0.00022261,2]
[311937365,1705510270345,-500.0,0.00022261,2]
[311937367,1705510270375,-500.0,0.00022261,2]
[311937369,1705510270409,-500.0,0.00022261,2]
[311937371,1705510270431,-500.0,0.00022261,2]
[311937373,1705510270455,-500.0,0.00022261,2]
[311937375,1705510270500,-500.0,0.00022261,2]
[311937377,1705510270522,-500.0,0.00022261,2]
[311937379,1705510270546,-500.0,0.00022261,2]
[311937381,1705510270563,-500.0,0.00022261,2]
[311937383,1705510270594,-500.0,0.00022261,2]
[311937386,1705510270634,-500.0,0.00022261,2]
[311937387,1705510270659,-500.0,0.00022261,2]
[311937389,1705510270689,-500.0,0.00022261,2]
[311937392,1705510270714,-569.18,0.00022261,2]
[311937394,1705510270741,-500.0,0.00022261,2]
[311937395,1705510270766,-500.0,0.00022261,2]
[311937397,1705510270785,-500.0,0.00022261,2]
[311937399,1705510270813,-500.0,0.00022261,2]
[311937401,1705510270825,-500.0,0.00022261,2]
[311937403,1705510270861,-500.0,0.00022261,2]
[311937405,1705510270880,-500.0,0.00022261,2]
[311937406,1705510270904,-500.0,0.00022261,2]
[311937409,1705510270923,-508.14,0.00022261,2]
[311937411,1705510270949,-500.0,0.00022261,2]
[311937413,1705510270984,-500.0,0.00022261,2]
[311937414,1705510271011,-500.0,0.00022261,2]
[311937417,1705510271046,-500.0,0.00022261,2]
[311937418,1705510271061,-150.0,0.00022261,2]
[311937421,1705510271083,-500.0,0.00022261,2]
[311937422,1705510271104,-527.47,0.00022261,2]
[311937424,1705510271133,-589.90096381,0.00022261,2]
[311937426,1705510271166,-315.27,0.00022261,2]
[311937428,1705510271200,-500.0,0.00022261,2]
[311937430,1705510271216,-500.0,0.00022261,2]
[311937432,1705510271255,-500.0,0.00022261,2]
[311937434,1705510271275,-500.0,0.00022261,2]
[311937436,1705510271308,-500.0,0.00022261,2]
[311937439,1705510271352,-500.0,0.00022261,2]
[311937440,1705510271384,-565.95089069,0.00022261,2]
[311937442,1705510271409,-500.0,0.00022261,2]
[311937444,1705510271436,-500.0,0.00022261,2]
[311937447,1705510271454,-500.0,0.00022261,2]
[311937449,1705510271475,-500.0,0.00022261,2]
[311937450,1705510271513,-500.0,0.00022261,2]
[311937452,1705510271536,-546.98,0.00022261,2]
[311937454,1705510271563,-626.2,0.00022261,2]
[311937456,1705510271594,-500.0,0.00022261,2]
[311937458,1705510271622,-500.0,0.00022261,2]
[311937460,1705510271646,-500.0,0.00022261,2]
[311937462,1705510271664,-626.56,0.00022261,2]
[311937463,1705510271684,-500.0,0.00022261,2]
[311937466,1705510271701,-595.35,0.00022261,2]
[311937468,1705510271726,-500.0,0.00022261,2]
[311937469,1705510271746,-500.0,0.00022261,2]
[311937472,1705510271788,-546.59,0.00022261,2]
[311937474,1705510271808,-580.83,0.00022261,2]
[311937476,1705510271868,-500.0,0.00022261,2]
[311937477,1705510271939,-500.0,0.00022261,2]
[311937480,1705510272014,-500.0,0.00022261,2]
[311937482,1705510272045,-500.0,0.00022261,2]
[311937483,1705510272074,-641.32,0.00022261,2]
[311937485,1705510272087,-500.0,0.00022261,2]
[311937487,1705510272111,-500.0,0.00022261,2]
[311937489,1705510272149,-500.0,0.00022261,2]
[311937491,1705510272172,-500.0,0.00022261,2]
[311937493,1705510272214,-500.0,0.00022261,2]
[311937495,1705510272242,-500.0,0.00022261,2]
[311937498,1705510272264,-500.0,0.00022261,2]
[311937500,1705510272286,-500.0,0.00022261,2]
[311937502,1705510272319,-500.0,0.00022261,2]
[311937503,1705510272338,-500.0,0.00022261,2]
[311937506,1705510272377,-422.44,0.00022261,2]
[311937508,1705510272403,-500.0,0.00022261,2]
[311937511,1705510272436,-500.0,0.00022261,2]
[311937512,1705510272464,-641.03,0.00022261,2]
[311937515,1705510272516,-488.39,0.00022261,2]
[311937517,1705510272538,-329.03,0.00022261,2]
[311937519,1705510272560,-240.57,0.00022261,2]
[311937520,1705510272582,-458.02,0.00022261,2]
[311937522,1705510272608,-620.25,0.00022261,2]
[311937525,1705510272639,-500.0,0.00022261,2]
[311937526,1705510272663,-500.0,0.00022261,2]
[311937528,1705510272688,-376.57,0.00022261,2]
[311937530,1705510272701,-500.0,0.00022261,2]
[311937532,1705510272738,-500.0,0.00022261,2]
[311937534,1705510272761,-500.0,0.00022261,2]
[311937536,1705510272780,-467.84,0.00022261,2]
[311937538,1705510272793,-500.0,0.00022261,2]
[311937539,1705510272830,-500.0,0.00022261,2]
[311937541,1705510272855,-500.0,0.00022261,2]
[311937544,1705510272889,-512.46,0.00022261,2]
[311937545,1705510272909,-500.0,0.00022261,2]
[311937547,1705510272938,-500.0,0.00022261,2]
[311937549,1705510272962,-389.11,0.00022261,2]
[311937551,1705510272986,-500.0,0.00022261,2]
[311937553,1705510273010,-375.33,0.00022261,2]
[311937555,1705510273038,-500.0,0.00022261,2]
[311937557,1705510273062,-500.0,0.00022261,2]
[311937558,1705510273084,-500.0,0.00022261,2]
[311937560,1705510273105,-500.0,0.00022261,2]
[311937562,1705510273132,-619.99,0.00022261,2]
[311937565,1705510273155,-500.0,0.00022261,2]
[311937567,1705510273182,-500.0,0.00022261,2]
[311937568,1705510273206,-500.0,0.00022261,2]
[311937570,1705510273219,-500.0,0.00022261,2]
[311937572,1705510273252,-365.74,0.00022261,2]
[311937574,1705510273277,-500.0,0.00022261,2]
[311937576,1705510273300,-500.0,0.00022261,2]
[311937578,1705510273318,-500.0,0.00022261,2]
[311937579,1705510273354,-330.63,0.00022261,2]
[311937580,1705510273377,-500.0,0.00022261,2]